{"text_format":"1","workbook":"xlsx","n_sheets":2,"sheets":["Joc","Scor"],"not_rendered":{"charts":0,"images":0,"macros":1,"external_links":0,"defined_names":0,"comments":0,"pivot_tables":0},"unopened":[],"bounds":{"document_bytes":16777216,"sheet_cells":100000,"rows_first":2000,"rows_last":500,"rows_between":2000,"halvings":0,"cell_chars":16384,"cell_head_chars":4096},"cells_cut":0,"cells_raw":0,"read":"whole","date_system":"1900"}

{"sheet":"Joc","index":0,"n_rows":33,"n_cols":36,"rows_kept":33,"cut":false,"hidden":false,"merged":[[3,1,3,35],[32,1,32,35],[4,1,4,3],[1,1,1,35]]}
[]
[null,"RECAPITULARE TABLA IMPARTIRII"]
[]
[null,"Completeaza rezultatul in coloana indicata de sageata si afla cat de bine ai invatat tabla impartirii ! \nPunctajul maxim care poate fi obtinut, daca raspunzi corect la toate intrebarile, este de 80 puncte + 20 puncte din oficiu = 100 puncte"]
[null,"SUCCES !"]
[null,null,null,null,null,null,null,null,"PUNCTAJ",null,null,null,null,null,null,null,null,"PUNCTAJ",null,null,null,null,null,null,null,null,"PUNCTAJ",null,null,null,null,null,null,null,null,"PUNCTAJ"]
[]
[null,null,4,":",2,"=",null,null,{"$f":"IF(G8=(C8/E8), 1, 0)","v":0},null,null,25,":",5,"=",null,null,{"$f":"IF(P8=(L8/N8), 1, 0)","v":0},null,null,49,":",7,"=",null,null,{"$f":"IF(Y8=(U8/W8), 1, 0)","v":0},null,null,18,":",6,"=",null,null,{"$f":"IF(AH8=(AD8/AF8), 1, 0)","v":0}]
[null,null,40,":",8,"=",null,null,{"$f":"IF(G9=(C9/E9), 1, 0)","v":0},null,null,6,":",3,"=",null,null,{"$f":"IF(P9=(L9/N9), 1, 0)","v":0},null,null,24,":",8,"=",null,null,{"$f":"IF(Y9=(U9/W9), 1, 0)","v":0},null,null,24,":",3,"=",null,null,{"$f":"IF(AH9=(AD9/AF9), 1, 0)","v":0}]
[null,null,20,":",5,"=",null,null,0,null,null,45,":",9,"=",null,null,0,null,null,8,":",4,"=",null,null,0,null,null,8,":",2,"=",null,null,0]
[null,null,72,":",8,"=",null,null,0,null,null,21,":",7,"=",null,null,0,null,null,30,":",6,"=",null,null,0,null,null,10,":",5,"=",null,null,0]
[null,null,27,":",9,"=",null,null,0,null,null,14,":",2,"=",null,null,0,null,null,16,":",4,"=",null,null,0,null,null,35,":",7,"=",null,null,0]
[null,null,70,":",7,"=",null,null,0,null,null,81,":",9,"=",null,null,0,null,null,18,":",3,"=",null,null,0,null,null,30,":",5,"=",null,null,0]
[null,null,28,":",4,"=",null,null,0,null,null,24,":",4,"=",null,null,0,null,null,16,":",2,"=",null,null,0,null,null,20,":",2,"=",null,null,0]
[null,null,16,":",4,"=",null,null,0,null,null,12,":",3,"=",null,null,0,null,null,35,":",5,"=",null,null,0,null,null,54,":",6,"=",null,null,0]
[null,null,12,":",2,"=",null,null,0,null,null,40,":",5,"=",null,null,0,null,null,63,":",7,"=",null,null,0,null,null,21,":",3,"=",null,null,0]
[null,null,32,":",4,"=",null,null,0,null,null,40,":",4,"=",null,null,0,null,null,30,":",3,"=",null,null,0,null,null,64,":",8,"=",null,null,0]
[null,null,null,null,null,null,null,null,{"$f":"SUM(I8:I17)","v":0},null,null,null,null,null,null,null,null,{"$f":"SUM(R8:R17)","v":0},null,null,null,null,null,null,null,null,{"$f":"SUM(AA8:AA17)","v":0},null,null,null,null,null,null,null,null,{"$f":"SUM(AJ8:AJ17)","v":0}]
[]
[null,null,null,null,null,null,null,null,"PUNCTAJ",null,null,null,null,null,null,null,null,"PUNCTAJ",null,null,null,null,null,null,null,null,"PUNCTAJ",null,null,null,null,null,null,null,null,"PUNCTAJ"]
[]
[null,null,90,":",9,"=",null,null,{"$f":"IF(G22=(C22/E22), 1, 0)","v":0},null,null,48,":",8,"=",null,null,{"$f":"IF(P22=(L22/N22), 1, 0)","v":0},null,null,9,":",3,"=",null,null,{"$f":"IF(Y22=(U22/W22), 1, 0)","v":0},null,null,25,":",5,"=",null,null,{"$f":"IF(AH22=(AD22/AF22), 1, 0)","v":0}]
[null,null,18,":",2,"=",null,null,{"$f":"IF(G23=(C23/E23), 1, 0)","v":0},null,null,7,":",7,"=",null,null,{"$f":"IF(P23=(L23/N23), 1, 0)","v":0},null,null,32,":",8,"=",null,null,{"$f":"IF(Y23=(U23/W23), 1, 0)","v":0},null,null,36,":",9,"=",null,null,{"$f":"IF(AH23=(AD23/AF23), 1, 0)","v":0}]
[null,null,15,":",3,"=",null,null,0,null,null,24,":",6,"=",null,null,0,null,null,20,":",4,"=",null,null,0,null,null,64,":",8,"=",null,null,0]
[null,null,28,":",7,"=",null,null,0,null,null,80,":",8,"=",null,null,0,null,null,72,":",9,"=",null,null,0,null,null,36,":",6,"=",null,null,0]
[null,null,12,":",6,"=",null,null,0,null,null,27,":",3,"=",null,null,0,null,null,42,":",7,"=",null,null,0,null,null,36,":",4,"=",null,null,0]
[null,null,6,":",6,"=",null,null,0,null,null,14,":",7,"=",null,null,0,null,null,45,":",5,"=",null,null,0,null,null,49,":",7,"=",null,null,0]
[null,null,54,":",9,"=",null,null,0,null,null,12,":",4,"=",null,null,0,null,null,16,":",8,"=",null,null,0,null,null,50,":",5,"=",null,null,0]
[null,null,15,":",5,"=",null,null,0,null,null,10,":",2,"=",null,null,0,null,null,100,":",10,"=",null,null,0,null,null,18,":",9,"=",null,null,0]
[null,null,42,":",6,"=",null,null,0,null,null,63,":",9,"=",null,null,0,null,null,56,":",8,"=",null,null,0,null,null,63,":",9,"=",null,null,0]
[null,null,56,":",7,"=",null,null,0,null,null,48,":",6,"=",null,null,0,null,null,60,":",6,"=",null,null,0,null,null,6,":",2,"=",null,null,0]
[null,null,null,null,null,null,null,null,{"$f":"SUM(I22:I31)","v":0},null,null,null,null,null,null,null,null,{"$f":"SUM(R22:R31)","v":0},null,null,null,null,null,null,null,null,{"$f":"SUM(AA22:AA31)","v":0},null,null,null,null,null,null,null,null,{"$f":"SUM(AJ22:AJ31)","v":0}]
[null,{"$f":"IF(SUM(I18,R18,AA18,AJ18,I32,R32,AA32,AJ32)<56,\"Ai obtinut \"&SUM(I18,R18,AA18,AJ18,I32,R32,AA32,AJ32)+20 &\" puncte din 100 posibile! Mai exerseaza pentru a fi si mai bun !\",IF(SUM(I18,R18,AA18,AJ18,I32,R32,AA32,AJ32)<72,\"Ai obtinut \"&SUM(I18,R18,AA18,AJ18,I32,R32,AA32,AJ32)+20&\" puncte din 100 posibile! Esti destul de bun, dar poti fi si mai bun !\",IF(SUM(I18,R18,AA18,AJ18,I32,R32,AA32,AJ32)=72,\"Ai obtinut 92 puncte din 100 posibile ! Esti foarte bun!\",\"Ai obtinut 100 puncte din 100 posibile ! Esti extraordinar !\")))","v":"Ai obtinut 20 puncte din 100 posibile! Mai exerseaza pentru a fi si mai bun !"}]

{"sheet":"Scor","index":1,"n_rows":6,"n_cols":3,"rows_kept":6,"cut":false,"hidden":false,"merged":[[1,1,1,2],[3,1,3,2]]}
[]
[null,"TABLA IMPARTIRII"]
[]
[null,"Acestea sunt punctajele obtinute de tine ! Colegii tai ce punctaj au obtinut ?"]
[]
[null,"Data","Punctaj"]